fUSD/lending_fUSD_20240615
["ID","MTS","AMOUNT","RATE_DAILY","PERIOD"]
[329569078,1718451051359,-151.0,0.0002,2]
[329569079,1718451051370,-151.0,0.0002,2]
[329569080,1718451051380,-151.0,0.0002,2]
[329569081,1718451051398,-151.0,0.0002,2]
[329569082,1718451051409,-14847.64663624,0.0002,2]
[329569083,1718451051430,-151.0,0.0002,2]
[329569084,1718451051441,-151.0,0.0002,2]
[329569085,1718451051451,-175.479121,0.0002,2]
[329569086,1718451051462,-152.042745,0.0002,2]
[329569087,1718451051472,-151.0,0.0002,2]
[329569088,1718451051483,-151.0,0.0002,2]
[329569089,1718451051494,-151.0,0.0002,2]
[329569090,1718451051505,-151.0,0.0002,2]
[329569091,1718451051517,-1000.0,0.00020024,2]
[329569092,1718451051527,-226.79813277,0.000201,2]
[329569093,1718451051539,-153.1,0.00020133,2]
[329569094,1718451051550,-7286.87536154,0.00020159,2]
[329569095,1718451051572,-277.755355,0.00020274,2]
[329569096,1718451051590,-698.86,0.00020297,2]
[329569097,1718451051610,-221.0,0.00020487,15]
[329569098,1718451051624,-221.0,0.00020497,15]
[329569099,1718451051635,-150.0,0.000205,2]
[329569100,1718451051651,-221.0,0.00020507,15]
[329569101,1718451051668,-172.1,0.00020548,2]
[329569102,1718451051692,-212.0,0.0002061,2]
[329569103,1718451051702,-19731.60134652,0.000207,2]
[329569105,1718451051713,-156.261198,0.000207,2]
[329569106,1718451051727,-151.0,0.000207,2]
[329569108,1718451051738,-151.0,0.000207,2]
[329569110,1718451051750,-151.0,0.000207,2]
[329569112,1718451051762,-151.0,0.000207,2]
[329569115,1718451051787,-151.0,0.000207,2]
[329569117,1718451051798,-151.0,0.000207,2]
[329569119,1718451051813,-232.696191,0.000207,2]
[329569121,1718451051824,-151.0,0.000207,2]
[329569123,1718451051838,-999.611463,0.000207,2]
[329569125,1718451051848,-151.0,0.000207,2]
[329569127,1718451051860,-153.1,0.00020897,2]
[329569129,1718451051884,-1612.0,0.00020984,2]
[329569131,1718451051896,-1250.0,0.00021,2]
[329569133,1718451051909,-150.0,0.00021,2]
[329569135,1718451051927,-150.0,0.00021019,2]
[329569137,1718451051955,-1304.0,0.00021061,2]
[329569140,1718451051994,-1904.731,0.00021061,2]
[329569141,1718451052005,-447.0,0.00021061,2]
[329569145,1718451052035,-150.0,0.00021061,2]
[329569147,1718451052046,-546.0,0.00021061,2]
[329569149,1718451052061,-3196.0,0.00021061,2]
[329569151,1718451052081,-1981.0,0.00021061,2]
[329569153,1718451052095,-5160.0,0.00021061,2]
[329569155,1718451052109,-290.0,0.00021061,2]
[329569157,1718451052120,-38103.0,0.00021061,2]
[329569159,1718451052132,-359.0,0.00021061,2]
[329569161,1718451052143,-1830.0,0.00021061,2]
[329569162,1718451052154,-1270.0,0.00021061,2]
[329569165,1718451052188,-5790.0,0.00021061,2]
[329569167,1718451052225,-1195.0,0.00021061,2]
[329569168,1718451052246,-1450.779,0.00021061,2]
[329569170,1718451052258,-811.0,0.00021061,2]
[329569172,1718451052299,-277.755355,0.00021096,2]
[329569173,1718451052339,-300.61,0.00021205,2]
[329569174,1718451052353,-150.0,0.00021205,2]
[329569176,1718451052393,-150.0,0.00021205,2]
[329569178,1718451052428,-150.0,0.00021205,2]
[329569180,1718451052451,-507.22545858,0.00021292,2]
[329569182,1718451052466,-1696.01894,0.0002136,2]
[329569184,1718451052490,-3088.0,0.0002137,2]
[329569186,1718451052510,-7286.87536154,0.00021411,2]
[329569188,1718451052539,-150.0,0.000215,3]
[329569189,1718451052550,-150.0,0.00021546,2]
[329569191,1718451052562,-150.0,0.00021583,2]
[329569193,1718451052589,-10000.0,0.00021615,2]
[329569195,1718451052601,-800.0,0.00021616,2]
[329569197,1718451052628,-800.0,0.00021616,2]
[329569198,1718451052638,-800.0,0.00021616,2]
[329569200,1718451052649,-800.0,0.00021616,2]
[329569202,1718451052662,-800.0,0.00021616,2]
[329569204,1718451052681,-153.1,0.0002166,2]
[329569206,1718451052695,-282.90771875,0.00021715,2]
[329569208,1718451052711,-160.80473435,0.00021715,2]
[329569211,1718451052736,-411.95127253,0.00021715,2]
[329569213,1718451052753,-155.0,0.00021715,2]
[329569215,1718451052766,-525.31539488,0.00021715,2]
[329569217,1718451052776,-1000.0,0.00021753,2]
[329569220,1718451052794,-1399.70760311,0.00021769,2]
[329569222,1718451052804,-521.40748737,0.00021769,2]
[329569224,1718451052815,-1613.0,0.00021795,2]
[329569226,1718451052837,-1127.59197148,0.00021843,2]
[329569229,1718451052852,-1658.91796786,0.00021843,2]
[329569230,1718451052881,-150.0,0.00021853,2]
[329569233,1718451052911,-150.0,0.00021853,2]
[329569235,1718451052927,-150.0,0.00021853,2]
[329569236,1718451052949,-150.0,0.00021853,2]
[329569238,1718451052981,-150.0,0.0002186,2]
[329569240,1718451052992,-212.0,0.000219,2]
[329569242,1718451053003,-737.05590411,0.000219,2]
[329569244,1718451053030,-523.22694265,0.00021917,2]
[329569246,1718451053043,-500.0,0.00021917,2]
[329569248,1718451053057,-413.39535634,0.00021917,2]
[329569250,1718451053068,-501.32011767,0.00021917,2]
[329569252,1718451053082,-501.06717204,0.00021917,2]
[329569254,1718451053093,-500.0,0.00021917,2]
[329569256,1718451053118,-572.86214345,0.00021917,2]
[329569257,1718451053136,-501.84835723,0.00021917,2]
[329569260,1718451053153,-500.0,0.00021917,2]
[329569263,1718451053172,-500.0,0.00021917,2]
[329569265,1718451053184,-500.0,0.00021917,2]
[329569266,1718451053196,-365.15189406,0.00021917,2]
[329569267,1718451053207,-500.0,0.00021917,2]
[329569269,1718451053233,-500.0,0.00021917,2]
[329569270,1718451053252,-500.0,0.00021917,2]
[329569272,1718451053285,-551.40858566,0.00021917,2]
[329569274,1718451053306,-500.0,0.00021917,2]
[329569275,1718451053318,-157.94179492,0.00021917,2]
[329569276,1718451053336,-500.0,0.00021917,2]
[329569278,1718451053355,-500.0,0.00021917,2]
[329569282,1718451053388,-500.0,0.00021917,2]
[329569285,1718451053404,-516.27826501,0.00021917,2]
[329569288,1718451053427,-500.0,0.00021917,2]
[329569293,1718451053477,-500.0,0.00021917,2]
[329569295,1718451053490,-500.0,0.00021917,2]
[329569297,1718451053509,-500.0,0.00021917,2]
[329569299,1718451053524,-500.0,0.00021917,2]
[329569301,1718451053538,-439.26670151,0.00021917,2]
[329569312,1718451053551,-500.0,0.00021917,2]
[329569316,1718451053739,-500.0,0.00021917,2]
[329569318,1718451053761,-500.0,0.00021917,2]
[329569320,1718451053772,-551.65526185,0.00021917,2]
[329569323,1718451053785,-200.0,0.00021917,2]
[329569325,1718451053797,-500.0,0.00021917,2]
[329569328,1718451053819,-240.2128006,0.00021917,2]
[329569330,1718451053834,-500.0,0.00021917,2]
[329569332,1718451053846,-500.0,0.00021917,2]
[329569334,1718451053857,-500.0,0.00021917,2]
[329569336,1718451053873,-500.0,0.00021917,2]
[329569337,1718451053885,-500.0,0.00021917,2]
[329569341,1718451053910,-500.0,0.00021917,2]
[329569343,1718451053948,-500.0,0.00021917,2]
[329569346,1718451053990,-500.0,0.00021917,2]
[329569349,1718451054033,-529.59765584,0.00021917,2]
[329569350,1718451054059,-197.84334007,0.00021917,2]
[329569352,1718451054071,-500.0,0.00021917,2]
[329569354,1718451054089,-500.0,0.00021917,2]
[329569356,1718451054119,-500.0,0.00021917,2]
[329569358,1718451054152,-506.57879303,0.00021917,2]
[329569360,1718451054183,-500.0,0.00021917,2]
[329569361,1718451054195,-508.94900339,0.00021917,2]
[329569364,1718451054228,-604.98874371,0.00021917,2]
[329569366,1718451054248,-540.10934504,0.00021917,2]
[329569367,1718451054267,-500.0,0.00021917,2]
[329569370,1718451054331,-500.0,0.00021917,2]
[329569372,1718451054357,-500.0,0.00021917,2]
[329569373,1718451054389,-500.0,0.00021917,2]
[329569375,1718451054402,-500.0,0.00021917,2]
[329569377,1718451054452,-500.0,0.00021917,2]
[329569378,1718451054468,-522.01,0.00021917,2]
[329569381,1718451054481,-500.0,0.00021917,2]
[329569384,1718451054517,-500.0,0.00021917,2]
[329569386,1718451054548,-500.0,0.00021917,2]
[329569388,1718451054591,-484.57704821,0.00021917,2]
[329569390,1718451054632,-500.0,0.00021917,2]
[329569392,1718451054650,-346.61199055,0.00021917,2]
[329569394,1718451054682,-500.0,0.00021917,2]
[329569395,1718451054722,-500.0,0.00021917,2]
[329569397,1718451054733,-500.0,0.00021917,2]
[329569398,1718451054748,-500.0,0.00021917,2]
[329569400,1718451054797,-500.0,0.00021917,2]
[329569402,1718451054826,-500.0,0.00021917,2]
[329569404,1718451054873,-500.0,0.00021917,2]
[329569407,1718451054910,-500.0,0.00021917,2]
[329569409,1718451054956,-500.0,0.00021917,2]
[329569410,1718451054970,-537.55267347,0.00021917,2]
[329569413,1718451055008,-500.0,0.00021917,2]
[329569416,1718451055045,-500.0,0.00021917,2]
[329569418,1718451055090,-500.0,0.00021917,2]
[329569419,1718451055121,-500.0,0.00021917,2]
[329569420,1718451055134,-174.15758717,0.00021917,2]
[329569423,1718451055165,-530.8340334,0.00021917,2]
[329569425,1718451055197,-500.0,0.00021917,2]
[329569428,1718451055240,-500.0,0.00021917,2]
[329569429,1718451055269,-500.0,0.00021917,2]
[329569431,1718451055282,-500.0,0.00021917,2]
[329569432,1718451055302,-568.14117772,0.00021917,2]
[329569435,1718451055356,-500.0,0.00021917,2]
[329569438,1718451055401,-314.15563279,0.00021917,2]
[329569440,1718451055417,-500.0,0.00021917,2]
[329569443,1718451055446,-500.0,0.00021917,2]
[329569444,1718451055473,-500.0,0.00021917,2]
[329569446,1718451055512,-500.0,0.00021917,2]
[329569448,1718451055531,-500.0,0.00021917,2]
[329569450,1718451055556,-261.98502447,0.00021917,2]
[329569452,1718451055586,-500.0,0.00021917,2]
[329569454,1718451055599,-500.0,0.00021917,2]
[329569456,1718451055614,-500.0,0.00021917,2]
[329569458,1718451055627,-500.0,0.00021917,2]
[329569461,1718451055676,-500.0,0.00021917,2]
[329569463,1718451055697,-152.103664,0.00021917,2]
[329569465,1718451055721,-500.0,0.00021917,2]
[329569467,1718451055737,-500.0,0.00021917,2]
[329569469,1718451055776,-500.0,0.00021917,2]
[329569471,1718451055795,-500.0,0.00021917,2]
[329569473,1718451055808,-152.762038,0.00021917,2]
[329569475,1718451055821,-500.0,0.00021917,2]
[329569477,1718451055833,-500.0,0.00021917,2]
[329569479,1718451055856,-500.0,0.00021917,2]
[329569481,1718451055873,-500.0,0.00021917,2]
[329569483,1718451055889,-500.0,0.00021917,2]
[329569484,1718451055908,-500.0,0.00021917,2]
[329569486,1718451055938,-500.0,0.00021917,2]
[329569488,1718451055993,-500.0,0.00021917,2]
[329569490,1718451056008,-500.0,0.00021917,2]
[329569491,1718451056029,-500.0,0.00021917,2]
[329569493,1718451056053,-500.0,0.00021917,2]
[329569496,1718451056084,-500.0,0.00021917,2]
[329569498,1718451056097,-500.0,0.00021917,2]
[329569501,1718451056115,-500.0,0.00021917,2]
[329569503,1718451056134,-500.0,0.00021917,2]
[329569505,1718451056152,-500.0,0.00021917,2]
[329569507,1718451056181,-511.37564729,0.00021917,2]
[329569509,1718451056215,-500.0,0.00021917,2]
[329569512,1718451056280,-500.0,0.00021917,2]
[329569513,1718451056296,-500.0,0.00021917,2]
[329569515,1718451056324,-500.0,0.00021917,2]
[329569516,1718451056345,-500.0,0.00021917,2]
[329569518,1718451056357,-500.0,0.00021917,2]
[329569521,1718451056377,-500.0,0.00021917,2]
[329569523,1718451056397,-500.0,0.00021917,2]
[329569525,1718451056413,-500.0,0.00021917,2]
[329569527,1718451056428,-500.0,0.00021917,2]
[329569529,1718451056440,-610.06518915,0.00021917,2]
[329569531,1718451056463,-510.96853894,0.00021917,2]
[329569532,1718451056504,-500.0,0.00021917,2]
[329569535,1718451056518,-500.0,0.00021917,2]
[329569537,1718451056541,-500.0,0.00021917,2]
[329569539,1718451056562,-514.53842602,0.00021917,2]
[329569541,1718451056582,-500.0,0.00021917,2]
[329569543,1718451056621,-500.0,0.00021917,2]
[329569545,1718451056634,-559.98686818,0.00021917,2]
[329569548,1718451056650,-502.71166169,0.00021917,2]
[329569550,1718451056667,-500.0,0.00021917,2]
[329569552,1718451056685,-500.0,0.00021917,2]
[329569554,1718451056701,-500.0,0.00021917,2]
[329569556,1718451056738,-500.0,0.00021917,2]
[329569557,1718451056752,-500.0,0.00021917,2]
[329569560,1718451056778,-500.0,0.00021917,2]
[329569561,1718451056792,-500.0,0.00021917,2]
[329569564,1718451056825,-500.0,0.00021917,2]
[329569566,1718451056866,-500.0,0.00021917,2]
[329569568,1718451056893,-294.09371145,0.00021917,2]
[329569570,1718451056925,-500.0,0.00021917,2]
[329569572,1718451056940,-500.0,0.00021917,2]
[329569574,1718451056962,-393.51116251,0.00021917,2]
[329569575,1718451056975,-500.0,0.00021917,2]
[329569578,1718451056988,-500.0,0.00021917,2]
[329569580,1718451057003,-500.0,0.00021917,2]
[329569582,1718451057015,-500.0,0.00021917,2]
[329569584,1718451057044,-500.0,0.00021917,2]
[329569586,1718451057056,-500.0,0.00021917,2]
[329569588,1718451057081,-500.0,0.00021917,2]
[329569591,1718451057100,-500.0,0.00021917,2]
[329569593,1718451057120,-500.0,0.00021917,2]
[329569595,1718451057131,-500.0,0.00021917,2]
[329569597,1718451057147,-500.0,0.00021917,2]
[329569600,1718451057172,-500.0,0.00021917,2]
[329569602,1718451057185,-500.0,0.00021917,2]
[329569604,1718451057197,-500.0,0.00021917,2]
[329569606,1718451057208,-500.0,0.00021917,2]
[329569608,1718451057219,-153.967332,0.00021917,2]
[329569610,1718451057238,-500.0,0.00021917,2]
[329569612,1718451057249,-500.0,0.00021917,2]
[329569613,1718451057262,-500.0,0.00021917,2]
[329569616,1718451057274,-500.0,0.00021917,2]
[329569618,1718451057290,-500.0,0.00021917,2]
[329569620,1718451057328,-476.32805534,0.00021917,2]
[329569622,1718451057341,-500.0,0.00021917,2]
[329569624,1718451057352,-500.0,0.00021917,2]
[329569625,1718451057363,-500.0,0.00021917,2]
[329569628,1718451057374,-500.0,0.00021917,2]
[329569631,1718451057386,-500.0,0.00021917,2]
[329569633,1718451057415,-500.0,0.00021917,2]
[329569634,1718451057430,-500.0,0.00021917,2]
[329569636,1718451057442,-500.0,0.00021917,2]
[329569638,1718451057469,-500.0,0.00021917,2]
[329569641,1718451057483,-500.0,0.00021917,2]
[329569642,1718451057494,-500.0,0.00021917,2]
[329569644,1718451057507,-500.0,0.00021917,2]
[329569646,1718451057523,-500.0,0.00021917,2]
[329569648,1718451057536,-500.0,0.00021917,2]
[329569651,1718451057568,-500.0,0.00021917,2]
[329569652,1718451057579,-500.0,0.00021917,2]
[329569654,1718451057591,-351.14828347,0.00021917,2]
[329569656,1718451057603,-500.0,0.00021917,2]
[329569658,1718451057626,-500.0,0.00021917,2]
[329569660,1718451057659,-500.0,0.00021917,2]
[329569662,1718451057678,-500.0,0.00021917,2]
[329569664,1718451057695,-500.0,0.00021917,2]
[329569666,1718451057706,-500.0,0.00021917,2]
[329569668,1718451057720,-500.0,0.00021917,2]
[329569670,1718451057746,-500.0,0.00021917,2]
[329569671,1718451057758,-500.0,0.00021917,2]
[329569673,1718451057771,-500.0,0.00021917,2]
[329569675,1718451057792,-500.0,0.00021917,2]
[329569677,1718451057810,-500.0,0.00021917,2]
[329569679,1718451057837,-500.0,0.00021917,2]
[329569681,1718451057848,-500.0,0.00021917,2]
[329569683,1718451057861,-500.0,0.00021917,2]
[329569685,1718451057876,-500.0,0.00021917,2]
[329569687,1718451057889,-500.0,0.00021917,2]
[329569689,1718451057910,-500.0,0.00021917,2]
[329569691,1718451057942,-500.0,0.00021917,2]
[329569693,1718451057955,-500.0,0.00021917,2]
[329569696,1718451057976,-500.0,0.00021917,2]
[329569697,1718451058006,-500.0,0.00021917,2]
[329569700,1718451058018,-500.0,0.00021917,2]
[329569702,1718451058032,-314.11203391,0.00021917,2]
[329569705,1718451058061,-500.0,0.00021917,2]
[329569707,1718451058076,-500.12,0.00021917,2]
[329569709,1718451058089,-500.0,0.00021917,2]
[329569711,1718451058102,-619.16213466,0.00021917,2]
[329569713,1718451058117,-500.0,0.00021917,2]
[329569715,1718451058129,-500.0,0.00021917,2]
[329569717,1718451058141,-500.0,0.00021917,2]
[329569719,1718451058153,-200.0,0.00021917,2]
[329569723,1718451058189,-157.22931112,0.00021917,2]
[329569725,1718451058218,-500.0,0.00021917,2]
[329569727,1718451058247,-527.22397481,0.00021917,2]
[329569730,1718451058268,-500.0,0.00021917,2]
[329569732,1718451058284,-500.0,0.00021917,2]
[329569734,1718451058297,-500.0,0.00021917,2]
[329569735,1718451058313,-500.0,0.00021917,2]
[329569737,1718451058333,-500.0,0.00021917,2]
[329569739,1718451058371,-535.93175327,0.00021917,2]
[329569741,1718451058389,-500.0,0.00021917,2]
[329569743,1718451058413,-500.0,0.00021917,2]
[329569745,1718451058426,-500.0,0.00021917,2]
[329569749,1718451058476,-617.41,0.00021917,2]
[329569751,1718451058496,-467.17665794,0.00021917,2]
[329569753,1718451058519,-500.0,0.00021917,2]
[329569755,1718451058533,-500.0,0.00021917,2]
[329569757,1718451058549,-500.0,0.00021917,2]
[329569759,1718451058578,-362.64813286,0.00021917,2]
[329569761,1718451058616,-500.0,0.00021917,2]
[329569763,1718451058645,-500.0,0.00021917,2]
[329569765,1718451058658,-178.52334383,0.00021917,2]
[329569767,1718451058685,-251.2252383,0.00021917,2]
[329569768,1718451058700,-500.0,0.00021917,2]
[329569770,1718451058715,-500.0,0.00021917,2]
[329569771,1718451058746,-500.0,0.00021917,2]
[329569773,1718451058762,-500.0,0.00021917,2]
[329569774,1718451058789,-500.0,0.00021917,2]
[329569777,1718451058805,-500.0,0.00021917,2]
[329569778,1718451058818,-264.7339945,0.00021917,2]
[329569780,1718451058829,-500.0,0.00021917,2]
[329569781,1718451058840,-500.0,0.00021917,2]
[329569783,1718451058851,-500.0,0.00021917,2]
[329569785,1718451058865,-500.0,0.00021917,2]
[329569787,1718451058880,-500.0,0.00021917,2]
[329569789,1718451058892,-500.0,0.00021917,2]
[329569791,1718451058928,-466.87725166,0.00021917,2]
[329569793,1718451058940,-500.0,0.00021917,2]
[329569796,1718451058958,-500.0,0.00021917,2]
[329569798,1718451058984,-500.0,0.00021917,2]
[329569800,1718451059009,-500.0,0.00021917,2]
[329569802,1718451059023,-500.0,0.00021917,2]
[329569804,1718451059035,-500.0,0.00021917,2]
[329569806,1718451059060,-500.0,0.00021917,2]
[329569808,1718451059081,-530.05920791,0.00021917,2]
[329569810,1718451059106,-421.75262533,0.00021917,2]
[329569811,1718451059128,-500.0,0.00021917,2]
[329569812,1718451059168,-500.0,0.00021917,2]
[329569813,1718451059179,-501.5743162,0.00021917,2]
[329569815,1718451059209,-500.0,0.00021917,2]
[329569817,1718451059222,-500.0,0.00021917,2]
[329569819,1718451059240,-500.0,0.00021917,2]
[329569821,1718451059252,-500.0,0.00021917,2]
[329569823,1718451059270,-500.0,0.00021917,2]
[329569824,1718451059284,-500.0,0.00021917,2]
[329569826,1718451059295,-500.0,0.00021917,2]
[329569828,1718451059314,-500.0,0.00021917,2]
[329569829,1718451059326,-500.0,0.00021917,2]
[329569830,1718451059337,-500.0,0.00021917,2]
[329569831,1718451059349,-500.0,0.00021917,2]
[329569833,1718451059361,-500.0,0.00021917,2]
[329569835,1718451059388,-500.0,0.00021917,2]
[329569837,1718451059406,-151.0,0.00021917,2]
[329569839,1718451059425,-151.0,0.00021917,2]
[329569841,1718451059437,-239.508976,0.00021917,2]
[329569843,1718451059452,-500.0,0.00021917,2]
[329569845,1718451059462,-500.0,0.00021917,2]
[329569847,1718451059473,-500.0,0.00021917,2]
[329569848,1718451059490,-442.43866449,0.00021917,2]
[329569850,1718451059508,-157.84911093,0.00021917,2]
[329569852,1718451059526,-500.0,0.00021917,2]
[329569854,1718451059538,-500.0,0.00021917,2]
[329569856,1718451059552,-500.0,0.00021917,2]
[329569859,1718451059569,-500.0,0.00021917,2]
[329569861,1718451059580,-500.0,0.00021917,2]
[329569863,1718451059591,-500.12186732,0.00021917,2]
[329569865,1718451059603,-296.82324131,0.00021917,2]
[329569867,1718451059617,-500.0,0.00021917,2]
[329569869,1718451059630,-500.0,0.00021917,2]
[329569871,1718451059657,-500.0,0.00021917,2]
[329569873,1718451059671,-500.0,0.00021917,2]
[329569875,1718451059683,-500.0,0.00021917,2]
[329569877,1718451059700,-500.0,0.00021917,2]
[329569879,1718451059714,-500.0,0.00021917,2]
[329569881,1718451059726,-500.0,0.00021917,2]
[329569883,1718451059739,-500.0,0.00021917,2]
[329569885,1718451059755,-500.0,0.00021917,2]
[329569887,1718451059792,-500.0,0.00021917,2]
[329569889,1718451059810,-500.0,0.00021917,2]
[329569892,1718451059829,-500.0,0.00021917,2]
[329569894,1718451059848,-500.0,0.00021917,2]
[329569896,1718451059860,-500.0,0.00021917,2]
[329569898,1718451059875,-500.0,0.00021917,2]
[329569900,1718451059888,-500.0,0.00021917,2]
[329569902,1718451059912,-500.0,0.00021917,2]
[329569904,1718451059925,-500.0,0.00021917,2]
[329569906,1718451059936,-500.0,0.00021917,2]
[329569908,1718451059950,-500.0,0.00021917,2]
[329569910,1718451059973,-500.0,0.00021917,2]
[329569913,1718451059995,-500.0,0.00021917,2]
[329569915,1718451060045,-500.0,0.00021917,2]
[329569917,1718451060069,-416.05123156,0.00021917,2]
[329569919,1718451060082,-500.0,0.00021917,2]
[329569933,1718451060257,-500.0,0.00021917,2]
[329569935,1718451060294,-502.5544182,0.00021917,2]
[329569937,1718451060305,-500.0,0.00021917,2]
[329569939,1718451060322,-502.4172566,0.00021917,2]
[329569941,1718451060332,-500.0,0.00021917,2]
[329569943,1718451060366,-500.0,0.00021917,2]
[329569944,1718451060378,-151.0,0.00021917,2]
[329569946,1718451060407,-151.0,0.00021917,2]
[329569948,1718451060456,-500.0,0.00021917,2]
[329569950,1718451060472,-293.77187,0.00021917,2]
[329569952,1718451060483,-500.0,0.00021917,2]
[329569954,1718451060494,-500.0,0.00021917,2]
[329569956,1718451060510,-151.0,0.00021917,2]
[329569958,1718451060538,-500.0,0.00021917,2]
[329569961,1718451060567,-500.0,0.00021917,2]
[329569964,1718451060608,-500.0,0.00021917,2]
[329569966,1718451060627,-500.0,0.00021917,2]
[329569967,1718451060639,-500.0,0.00021917,2]
[329569969,1718451060670,-500.0,0.00021917,2]
[329569971,1718451060700,-500.0,0.00021917,2]
[329569973,1718451060711,-500.0,0.00021917,2]
[329569975,1718451060726,-500.0,0.00021917,2]
[329569976,1718451060754,-500.0,0.00021917,2]
[329569978,1718451060815,-500.0,0.00021917,2]
[329569981,1718451060833,-500.0,0.00021917,2]
[329569984,1718451060884,-500.0,0.00021917,2]
[329569985,1718451060917,-500.0,0.00021917,2]
[329569986,1718451060935,-500.0,0.00021917,2]
[329569988,1718451060968,-500.0,0.00021917,2]
[329569990,1718451060981,-570.97018506,0.00021917,2]
[329569992,1718451061001,-364.56,0.00021917,2]
[329569995,1718451061015,-593.7,0.00021917,2]
[329569996,1718451061038,-500.0,0.00021917,2]
[329569998,1718451061073,-500.0,0.00021917,2]
[329570001,1718451061113,-500.0,0.00021917,2]
[329570003,1718451061124,-165.30806224,0.00021917,2]
[329570005,1718451061137,-500.0,0.00021917,2]
[329570006,1718451061156,-343.77164055,0.00021917,2]
[329570008,1718451061178,-500.0,0.00021917,2]
[329570010,1718451061191,-500.0,0.00021917,2]
[329570013,1718451061204,-500.0,0.00021917,2]
[329570015,1718451061214,-500.0,0.00021917,2]
[329570016,1718451061235,-500.0,0.00021917,2]
[329570018,1718451061252,-500.0,0.00021917,2]
[329570020,1718451061270,-500.0,0.00021917,2]
[329570022,1718451061292,-924.58,0.00021917,2]
[329570024,1718451061329,-723.95,0.00021917,2]
[329570025,1718451061340,-500.0,0.00021917,2]
[329570027,1718451061359,-500.0,0.00021917,2]
[329570029,1718451061373,-500.0,0.00021917,2]
[329570032,1718451061415,-500.0,0.00021917,2]
[329570033,1718451061427,-500.0,0.00021917,2]
[329570034,1718451061457,-500.0,0.00021917,2]
[329570035,1718451061473,-500.0,0.00021917,2]
[329570036,1718451061483,-500.0,0.00021917,2]
[329570037,1718451061503,-672.34,0.00021917,2]
[329570038,1718451061517,-500.0,0.00021917,2]
[329570039,1718451061531,-500.0,0.00021917,2]
[329570040,1718451061555,-540.56868908,0.00021917,2]
[329570041,1718451061566,-525.61,0.00021917,2]
[329570042,1718451061577,-500.0,0.00021917,2]
[329570043,1718451061589,-500.0,0.00021917,2]
[329570044,1718451061601,-500.0,0.00021917,2]
[329570045,1718451061613,-500.0,0.00021917,2]
[329570046,1718451061627,-514.39726602,0.00021917,2]
[329570047,1718451061638,-500.0,0.00021917,2]
[329570048,1718451061668,-500.0,0.00021917,2]
[329570049,1718451061703,-500.0,0.00021917,2]
[329570050,1718451061722,-500.0,0.00021917,2]
[329570051,1718451061743,-500.0,0.00021917,2]
[329570052,1718451061769,-542.8297609,0.00021917,2]
[329570053,1718451061800,-665.35,0.00021917,2]
[329570054,1718451061822,-500.0,0.00021917,2]
[329570055,1718451061856,-500.0,0.00021917,2]
[329570056,1718451061870,-500.0,0.00021917,2]